fUSD/lending_fUSD_20240319
["ID","MTS","AMOUNT","RATE_DAILY","PERIOD"]
[319575514,1710876647309,-2949.49,0.00030136,2]
[319575515,1710876647318,-500.0,0.00030136,2]
[319575516,1710876647328,-500.0,0.00030136,2]
[319575517,1710876647338,-4170.69,0.00030136,2]
[319575518,1710876647348,-501.93982707,0.00030136,2]
[319575519,1710876647358,-500.0,0.00030136,2]
[319575520,1710876647367,-500.0,0.00030136,2]
[319575521,1710876647377,-6323.04,0.00030136,2]
[319575522,1710876647387,-500.0,0.00030136,2]
[319575523,1710876647396,-1462.09,0.00030136,2]
[319575524,1710876647406,-2332.65,0.00030136,2]
[319575525,1710876647416,-500.0,0.00030136,2]
[319575526,1710876647425,-828.92,0.00030136,2]
[319575527,1710876647435,-7127.46,0.00030136,2]
[319575528,1710876647444,-3877.03,0.00030136,2]
[319575529,1710876647454,-701.27,0.00030136,2]
[319575530,1710876647463,-500.0,0.00030136,2]
[319575531,1710876647473,-500.0,0.00030136,2]
[319575532,1710876647482,-500.0,0.00030136,2]
[319575533,1710876647492,-500.0,0.00030136,2]
[319575534,1710876647506,-500.0,0.00030136,2]
[319575535,1710876647515,-5099.31,0.00030136,2]
[319575536,1710876647525,-500.0,0.00030136,2]
[319575537,1710876647534,-15147.09,0.00030136,2]
[319575538,1710876647543,-500.0,0.00030136,2]
[319575539,1710876647553,-500.0,0.00030136,2]
[319575540,1710876647562,-279.16727864,0.00030136,2]
[319575541,1710876647571,-5292.83,0.00030136,2]
[319575542,1710876647580,-500.0,0.00030136,2]
[319575543,1710876647590,-500.0,0.00030136,2]
[319575544,1710876647599,-500.0,0.00030136,2]
[319575545,1710876647608,-200.0,0.00030137,2]
[319575546,1710876647618,-243.26,0.00030271,120]
[319575547,1710876647627,-526.62689816,0.0003031,2]
[319575548,1710876647636,-691.94,0.0003041,2]
[319575549,1710876647645,-586.26331887,0.0003041,2]
[319575550,1710876647654,-500.0,0.0003041,2]
[319575551,1710876647663,-34638.27,0.0003041,2]
[319575552,1710876647672,-500.0,0.0003041,2]
[319575553,1710876647681,-20834.2,0.0003041,2]
[319575554,1710876647690,-13435.29,0.0003041,2]
[319575555,1710876647699,-9195.3,0.0003041,2]
[319575556,1710876647708,-500.0,0.0003041,2]
[319575557,1710876647717,-10957.24,0.0003041,2]
[319575558,1710876647726,-500.0,0.0003041,2]
[319575559,1710876647736,-12028.03,0.0003041,2]
[319575560,1710876647746,-500.0,0.0003041,2]
[319575561,1710876647755,-2940.53,0.0003041,2]
[319575562,1710876647765,-3885.04,0.0003041,2]
[319575563,1710876647774,-917.72,0.0003041,2]
[319575564,1710876647783,-500.0,0.0003041,2]
[319575565,1710876647792,-1773.69,0.0003041,2]
[319575566,1710876647801,-515.40969029,0.0003041,2]
[319575567,1710876647810,-500.0,0.0003041,2]
[319575568,1710876647819,-1232.68,0.0003041,2]
[319575569,1710876647828,-500.0,0.0003041,2]
[319575570,1710876647837,-500.0,0.0003041,2]
[319575571,1710876647847,-7428.77,0.0003041,2]
[319575572,1710876647856,-1536.98,0.0003041,2]
[319575573,1710876647866,-500.0,0.0003041,2]
[319575574,1710876647875,-500.0,0.0003041,2]
[319575575,1710876647885,-16061.59,0.0003041,2]
[319575576,1710876647894,-4583.24,0.0003041,2]
[319575577,1710876647904,-1706.34,0.0003041,2]
[319575578,1710876647913,-500.0,0.0003041,2]
[319575579,1710876647923,-9557.47,0.0003041,2]
[319575580,1710876647932,-512.385892,0.0003041,2]
[319575581,1710876647942,-504.16066296,0.0003041,2]
[319575582,1710876647951,-9201.66,0.0003041,2]
[319575583,1710876647961,-3563.62,0.0003041,2]
[319575584,1710876647970,-500.0,0.0003041,2]
[319575585,1710876647980,-500.0,0.0003041,2]
[319575586,1710876647989,-6217.41,0.0003041,2]
[319575587,1710876648001,-500.0,0.0003041,2]
[319575588,1710876648010,-500.0,0.0003041,2]
[319575589,1710876648019,-4298.54,0.0003041,2]
[319575590,1710876648028,-17993.42,0.0003041,2]
[319575591,1710876648039,-724.24,0.0003041,2]
[319575592,1710876648049,-500.0,0.0003041,2]
[319575593,1710876648062,-585.25,0.0003041,2]
[319575594,1710876648071,-8439.13,0.0003041,2]
[319575595,1710876648080,-500.0,0.0003041,2]
[319575596,1710876648090,-500.0,0.0003041,2]
[319575597,1710876648100,-730.13,0.0003041,2]
[319575598,1710876648109,-2250.22,0.0003041,2]
[319575599,1710876648118,-599.77,0.0003041,2]
[319575600,1710876648128,-500.0,0.0003041,2]
[319575601,1710876648137,-4815.02,0.0003041,2]
[319575602,1710876648148,-500.0,0.0003041,2]
[319575603,1710876648158,-5591.38,0.0003041,2]
[319575604,1710876648168,-931.69,0.0003041,2]
[319575605,1710876648178,-500.0,0.0003041,2]
[319575606,1710876648188,-445.65550673,0.0003041,2]
[319575607,1710876648197,-7831.75,0.0003041,2]
[319575608,1710876648206,-2381.39,0.0003041,2]
[319575609,1710876648215,-500.0,0.0003041,2]
[319575610,1710876648224,-2136.03,0.0003041,2]
[319575611,1710876648234,-1072.83,0.0003041,2]
[319575612,1710876648244,-10954.03,0.0003041,2]
[319575613,1710876648256,-627.56,0.0003041,2]
[319575614,1710876648266,-528.53741645,0.0003041,2]
[319575615,1710876648276,-500.0,0.0003041,2]
[319575616,1710876648286,-16076.35,0.0003041,2]
[319575617,1710876648295,-2682.14,0.0003041,2]
[319575618,1710876648305,-8100.91,0.0003041,2]
[319575619,1710876648315,-13893.25,0.0003041,2]
[319575620,1710876648324,-1930.38,0.0003041,2]
[319575621,1710876648334,-500.0,0.0003041,2]
[319575622,1710876648343,-500.0,0.0003041,2]
[319575623,1710876648353,-5604.1,0.0003041,2]
[319575624,1710876648363,-500.0,0.0003041,2]
[319575625,1710876648373,-988.36,0.0003041,2]
[319575626,1710876648383,-500.0,0.0003041,2]
[319575627,1710876648392,-541.99,0.0003041,2]
[319575628,1710876648401,-500.32,0.0003041,2]
[319575629,1710876648411,-1965.72,0.0003041,2]
[319575630,1710876648421,-500.0,0.0003041,2]
[319575631,1710876648431,-5434.05,0.0003041,2]
[319575632,1710876648440,-34181.27,0.0003041,2]
[319575633,1710876648450,-18686.45,0.0003041,2]
[319575634,1710876648460,-5389.63,0.0003041,2]
[319575635,1710876648469,-500.0,0.0003041,2]
[319575636,1710876648479,-500.0,0.0003041,2]
[319575637,1710876648489,-8552.3,0.0003041,2]
[319575638,1710876648502,-20615.43,0.0003041,2]
[319575639,1710876648512,-2033.18,0.0003041,2]
[319575640,1710876648521,-500.0,0.0003041,2]
[319575641,1710876648531,-500.0,0.0003041,2]
[319575642,1710876648542,-520.34,0.0003041,2]
[319575643,1710876648551,-2624.59,0.0003041,2]
[319575644,1710876648561,-500.0,0.0003041,2]
[319575645,1710876648571,-2949.49,0.0003041,2]
[319575646,1710876648581,-500.0,0.0003041,2]
[319575647,1710876648591,-500.0,0.0003041,2]
[319575648,1710876648601,-4170.69,0.0003041,2]
[319575649,1710876648611,-500.0,0.0003041,2]
[319575650,1710876648620,-500.0,0.0003041,2]
[319575651,1710876648629,-500.0,0.0003041,2]
[319575652,1710876648640,-6323.04,0.0003041,2]
[319575653,1710876648650,-1462.09,0.0003041,2]
[319575654,1710876648661,-500.0,0.0003041,2]
[319575655,1710876648672,-2332.65,0.0003041,2]
[319575656,1710876648682,-828.92,0.0003041,2]
[319575657,1710876648693,-7127.46,0.0003041,2]
[319575658,1710876648703,-3877.03,0.0003041,2]
[319575659,1710876648714,-701.27,0.0003041,2]
[319575660,1710876648723,-500.0,0.0003041,2]
[319575661,1710876648731,-500.0,0.0003041,2]
[319575662,1710876648741,-500.0,0.0003041,2]
[319575663,1710876648753,-500.0,0.0003041,2]
[319575664,1710876648762,-5099.31,0.0003041,2]
[319575665,1710876648771,-396.2923071,0.0003041,2]
[319575666,1710876648780,-15147.09,0.0003041,2]
[319575667,1710876648789,-500.0,0.0003041,2]
[319575668,1710876648798,-582.06084956,0.0003041,2]
[319575669,1710876648807,-5292.83,0.0003041,2]
[319575670,1710876648816,-500.0,0.0003041,2]
[319575671,1710876648825,-500.0,0.0003041,2]
[319575672,1710876648834,-500.0,0.0003041,2]
[319575673,1710876648843,-63311.02224058,0.00030675,2]
[319575674,1710876648851,-691.94,0.00030684,2]
[319575675,1710876648860,-500.0,0.00030684,2]
[319575676,1710876648870,-34638.27,0.00030684,2]
[319575677,1710876648879,-20834.2,0.00030684,2]
[319575678,1710876648889,-500.0,0.00030684,2]
[319575679,1710876648898,-13435.29,0.00030684,2]
[319575680,1710876648908,-9195.3,0.00030684,2]
[319575681,1710876648917,-500.0,0.00030684,2]
[319575682,1710876648927,-10957.24,0.00030684,2]
[319575683,1710876648936,-500.0,0.00030684,2]
[319575684,1710876648944,-12028.03,0.00030684,2]
[319575685,1710876648954,-500.0,0.00030684,2]
[319575686,1710876648963,-2940.53,0.00030684,2]
[319575687,1710876648972,-3885.04,0.00030684,2]
[319575688,1710876648982,-917.72,0.00030684,2]
[319575689,1710876648990,-500.0,0.00030684,2]
[319575690,1710876649004,-1773.69,0.00030684,2]
[319575691,1710876649012,-500.0,0.00030684,2]
[319575692,1710876649021,-1232.68,0.00030684,2]
[319575693,1710876649030,-500.0,0.00030684,2]
[319575694,1710876649040,-500.0,0.00030684,2]
[319575695,1710876649049,-7428.77,0.00030684,2]
[319575696,1710876649061,-1536.98,0.00030684,2]
[319575697,1710876649070,-500.0,0.00030684,2]
[319575698,1710876649080,-173.66634892,0.00030684,2]
[319575699,1710876649090,-4583.24,0.00030684,2]
[319575700,1710876649100,-16061.59,0.00030684,2]
[319575701,1710876649109,-1706.34,0.00030684,2]
[319575702,1710876649118,-500.0,0.00030684,2]
[319575703,1710876649127,-9201.66,0.00030684,2]
[319575704,1710876649138,-9557.47,0.00030684,2]
[319575705,1710876649147,-3563.62,0.00030684,2]
[319575706,1710876649156,-500.0,0.00030684,2]
[319575707,1710876649165,-500.0,0.00030684,2]
[319575708,1710876649175,-6217.41,0.00030684,2]
[319575709,1710876649184,-500.0,0.00030684,2]
[319575710,1710876649193,-500.0,0.00030684,2]
[319575711,1710876649202,-4298.54,0.00030684,2]
[319575712,1710876649211,-17993.42,0.00030684,2]
[319575713,1710876649221,-724.24,0.00030684,2]
[319575714,1710876649231,-500.0,0.00030684,2]
[319575715,1710876649240,-585.25,0.00030684,2]
[319575716,1710876649251,-8439.13,0.00030684,2]
[319575717,1710876649260,-504.42027824,0.00030684,2]
[319575718,1710876649269,-730.13,0.00030684,2]
[319575719,1710876649279,-500.0,0.00030684,2]
[319575720,1710876649289,-2250.22,0.00030684,2]
[319575721,1710876649298,-599.77,0.00030684,2]
[319575722,1710876649307,-500.0,0.00030684,2]
[319575723,1710876649317,-4815.02,0.00030684,2]
[319575724,1710876649326,-500.65176731,0.00030684,2]
[319575725,1710876649335,-5591.38,0.00030684,2]
[319575726,1710876649345,-931.69,0.00030684,2]
[319575727,1710876649354,-500.0,0.00030684,2]
[319575728,1710876649363,-7831.75,0.00030684,2]
[319575729,1710876649373,-2381.39,0.00030684,2]
[319575730,1710876649383,-2136.03,0.00030684,2]
[319575731,1710876649393,-500.0,0.00030684,2]
[319575732,1710876649402,-10954.03,0.00030684,2]
[319575733,1710876649411,-1072.83,0.00030684,2]
[319575734,1710876649420,-627.56,0.00030684,2]
[319575735,1710876649430,-500.0,0.00030684,2]
[319575736,1710876649708,-16076.35,0.00030684,2]
[319575737,1710876649717,-2682.14,0.00030684,2]
[319575738,1710876649727,-8100.91,0.00030684,2]
[319575739,1710876649736,-13893.25,0.00030684,2]
[319575740,1710876649745,-1930.38,0.00030684,2]
[319575741,1710876649757,-500.0,0.00030684,2]
[319575742,1710876649766,-500.0,0.00030684,2]
[319575743,1710876649775,-5604.1,0.00030684,2]
[319575744,1710876649784,-500.0,0.00030684,2]
[319575745,1710876649793,-988.36,0.00030684,2]
[319575746,1710876649802,-540.49918142,0.00030684,2]
[319575747,1710876649811,-541.99,0.00030684,2]
[319575748,1710876649821,-500.32,0.00030684,2]
[319575749,1710876649830,-1965.72,0.00030684,2]
[319575750,1710876649839,-500.0,0.00030684,2]
[319575751,1710876649848,-5434.05,0.00030684,2]
[319575752,1710876649857,-4300.4156699,0.00030684,2]
[319575753,1710876649980,-500.0,0.00030136,2]
[319575754,1710876649989,-11507.52128056,0.00030684,2]
[319575755,1710876650002,-2936.86016957,0.00030684,2]
[319575756,1710876650014,-3575.05768858,0.00030684,2]
[319575757,1710876650026,-3854.00407314,0.00030684,2]
[319575758,1710876650900,-3462.62223728,0.00030136,2]
[319575759,1710876650912,-40209.45776272,0.00030136,2]
[319575760,1710876650921,-500.0,0.00030136,2]
[319575761,1710876650930,-1116.15,0.00030136,2]
[319575762,1710876650939,-500.0,0.0003041,2]
[319575763,1710876650948,-43672.08,0.0003041,2]
[319575764,1710876650958,-1116.15,0.0003041,2]
[319575765,1710876650967,-500.0,0.0003041,2]
[319575766,1710876650977,-8007.41111825,0.00030684,2]
[319575767,1710876650987,-5389.63,0.00030684,2]
[319575768,1710876650996,-500.0,0.00030684,2]
[319575769,1710876651009,-18686.45,0.00030684,2]
[319575770,1710876651019,-500.0,0.00030684,2]
[319575771,1710876651027,-8552.3,0.00030684,2]
[319575772,1710876651038,-20615.43,0.00030684,2]
[319575773,1710876651050,-2033.18,0.00030684,2]
[319575774,1710876651059,-500.0,0.00030684,2]
[319575775,1710876651069,-500.0,0.00030684,2]
[319575776,1710876651078,-520.34,0.00030684,2]
[319575777,1710876651089,-2624.59,0.00030684,2]
[319575778,1710876651099,-500.0,0.00030684,2]
[319575779,1710876651108,-2949.49,0.00030684,2]
[319575780,1710876651118,-500.0,0.00030684,2]
[319575781,1710876651128,-500.0,0.00030684,2]
[319575782,1710876651141,-4170.69,0.00030684,2]
[319575783,1710876651151,-500.0,0.00030684,2]
[319575784,1710876651161,-510.69299081,0.00030684,2]
[319575785,1710876651171,-500.0,0.00030684,2]
[319575786,1710876651180,-6323.04,0.00030684,2]
[319575787,1710876651190,-1462.09,0.00030684,2]
[319575788,1710876651199,-500.0,0.00030684,2]
[319575789,1710876651208,-2332.65,0.00030684,2]
[319575790,1710876651218,-828.92,0.00030684,2]
[319575791,1710876651228,-7127.46,0.00030684,2]
[319575792,1710876651237,-3877.03,0.00030684,2]
[319575793,1710876651247,-701.27,0.00030684,2]
[319575794,1710876651258,-584.89692012,0.00030684,2]
[319575795,1710876651268,-500.0,0.00030684,2]
[319575796,1710876651278,-500.0,0.00030684,2]
[319575797,1710876651287,-266.68920819,0.00030684,2]
[319575798,1710876651307,-233.31079181,0.00030684,2]
[319575799,1710876651317,-5099.31,0.00030684,2]
[319575800,1710876651327,-15147.09,0.00030684,2]
[319575801,1710876651336,-500.0,0.00030684,2]
[319575802,1710876651347,-5292.83,0.00030684,2]
[319575803,1710876651356,-500.0,0.00030684,2]
[319575804,1710876651366,-500.0,0.00030684,2]
[319575805,1710876651375,-500.0,0.00030684,2]
[319575806,1710876651385,-542.31901679,0.00030684,2]
[319575807,1710876651394,-14509.80968388,0.00030684,2]
[319575808,1710876651421,-1122.3280868,0.00030684,2]
[319575809,1710876651465,-500.0,0.00030684,2]
[319575810,1710876651481,-6864.23043116,0.00030684,2]
[319575811,1710876651532,-2055.86506957,0.00030684,2]
[319575812,1710876651544,-1816.676,0.00030684,2]
[319575813,1710876651556,-16803.17072859,0.00030684,2]
[319575814,1710876651566,-1116.15,0.00030684,2]
[319575815,1710876651576,-500.0,0.00030684,2]
[319575816,1710876651586,-152.82416009,0.00030842,2]
[319575817,1710876651596,-170.35374237,0.00030958,2]
[319575818,1710876651608,-521.58625763,0.00030958,2]
[319575819,1710876651617,-500.0,0.00030958,2]
[319575820,1710876651627,-34638.27,0.00030958,2]
[319575821,1710876651636,-500.0,0.00030958,2]
[319575822,1710876651646,-20834.2,0.00030958,2]
[319575823,1710876651655,-9195.3,0.00030958,2]
[319575824,1710876651664,-3568.02761693,0.00030958,2]
[319575825,1710876651675,-9867.26238307,0.00030958,2]
[319575826,1710876651684,-500.0,0.00030958,2]
[319575827,1710876651693,-8364.36304693,0.00030958,2]
[319575828,1710876651705,-2592.87695307,0.00030958,2]
[319575829,1710876651714,-500.0,0.00030958,2]
[319575830,1710876651723,-12028.03,0.00030958,2]
[319575831,1710876651733,-500.0,0.00030958,2]
[319575832,1710876651742,-2940.53,0.00030958,2]
[319575833,1710876651753,-3885.04,0.00030958,2]
[319575834,1710876651763,-917.72,0.00030958,2]
[319575835,1710876651772,-500.0,0.00030958,2]
[319575836,1710876651781,-1773.69,0.00030958,2]
[319575837,1710876651790,-500.0,0.00030958,2]
[319575838,1710876651799,-1232.68,0.00030958,2]
[319575839,1710876651808,-500.0,0.00030958,2]
[319575840,1710876651817,-500.0,0.00030958,2]
[319575841,1710876651826,-4671.20712439,0.00030958,2]
[319575842,1710876651851,-2757.56287561,0.00030958,2]
[319575843,1710876651860,-1094.23136981,0.00030958,2]
[319575844,1710876651872,-409.20495899,0.00030958,2]
[319575845,1710876651884,-33.5436712,0.00030958,2]
[319575846,1710876651892,-289.9816889,0.00030958,2]
[319575847,1710876651904,-210.0183111,0.00030958,2]
[319575848,1710876651913,-1172.63243785,0.00030958,2]
[319575849,1710876652271,1080.44074812,0.00013297,2]
[319575918,1710877831678,-261.89255077,0.00013951,2]
[319575919,1710877831688,-1883.56248326,0.00013952,2]
[319575920,1710877831698,-776.0493619,0.00013953,2]
[319575921,1710877831708,-157.80815582,0.00013953,2]
[319575922,1710877831718,-4303.04111929,0.00013954,2]
[319575923,1710877831728,-4172.42152539,0.00013954,2]
[319575924,1710877831738,-1763.15458407,0.00013955,2]
[319575925,1710877831748,-150.0,0.0001396,2]
[319575926,1710877831758,-3827.7417286,0.00013987,2]
[319575927,1710877831769,-276.8434919,0.00013987,2]
[319575928,1710877831781,-690.8245438,0.00013987,2]
[319575929,1710877831793,-2516.75208401,0.00013987,2]
[319575930,1710877831806,-2614.69283993,0.00013987,2]
[319575931,1710877831815,-356.54,0.00021,2]
[319575932,1710877831825,-6091.98313726,0.00022,2]
[319575933,1710877831840,-18261.0,0.00022,2]
[319575934,1710877831852,-6023.95082908,0.00022,2]
[319575935,1710877831863,-52763.82336272,0.00022,2]
[319575936,1710877831873,-1675.10136509,0.00022105,2]
[319575937,1710877831883,-3325.03843687,0.00022106,2]
[319575938,1710877831893,-616.66519307,0.00022106,2]
[319575939,1710877831902,-150.99,0.00022106,2]
[319575940,1710877831911,-2490.194631,0.00022107,2]
[319575941,1710877831921,-150.99,0.00022107,2]
[319575942,1710877831932,-9999.99,0.00022107,2]
[319575943,1710877831940,-499.99,0.00022107,2]
[319575944,1710877831956,-2490.194631,0.00024843,2]
[319575945,1710877831970,-429.38510823,0.00025,5]
[319575946,1710877831979,-268.35,0.00025024,2]
[319575947,1710877831988,-250.0,0.00026861,2]
[319575948,1710877831997,-250.0,0.00026861,2]
[319575949,1710877832007,-500.0,0.00026975,2]
[319575950,1710877832016,-200.0,0.00026995,2]
[319575951,1710877832026,-250.0,0.00027039,2]
[319575952,1710877832035,-7284.48,0.00027086,2]
[319575953,1710877832045,-2498.34,0.00027111,2]
[319575954,1710877832055,-158.99,0.00027147,10]
[319575955,1710877832064,-284.79,0.00027186,2]
[319575956,1710877832074,-23890.0,0.00027205,2]
[319575957,1710877832083,-284.1,0.00027221,2]
[319575958,1710877832092,-171.4,0.00027228,2]
[319575959,1710877832102,-268.35,0.00027288,2]
[319575960,1710877832111,-503.03,0.0002748,2]
[319575961,1710877832120,-503.03,0.00027552,2]
[319575962,1710877832130,-2490.194631,0.00027579,3]
[319575963,1710877832139,-503.03,0.00027625,2]
[319575964,1710877832149,-503.03,0.00027697,2]
[319575965,1710877832158,-503.03,0.00027769,2]
[319575966,1710877832168,-503.03,0.00027842,2]
[319575967,1710877832180,-503.03,0.00027914,2]
[319575969,1710877832189,-503.03,0.00027986,2]
[319575971,1710877832199,-503.03,0.00028059,2]
[319575973,1710877832208,-503.03,0.00028131,2]
[319575975,1710877832217,-2015.0,0.000282,3]
[319575977,1710877832227,-503.03,0.00028203,2]
[319575979,1710877832236,-503.03,0.00028276,2]
[319575981,1710877832245,-503.03,0.00028348,2]
[319575983,1710877832254,-503.03,0.0002842,2]
[319575985,1710877832264,-503.03,0.00028492,2]
[319575987,1710877832274,-503.03,0.00028565,2]
[319575990,1710877832283,-503.03,0.00028637,2]
[319575991,1710877832293,-503.03,0.00028709,2]
[319575992,1710877832302,-200.01,0.00028771,2]
[319575993,1710877832312,-503.03,0.00028782,2]
[319575994,1710877832321,-503.03,0.00028854,2]
[319575996,1710877832331,-250.0,0.00029136,2]
[319575998,1710877832340,-2500.0,0.00029175,10]
[319575999,1710877832349,-250.0,0.0002941,2]
[319576000,1710877832359,-268.35,0.00029552,2]
[319576001,1710877832372,-181.16,0.00029769,120]
[319576002,1710877832381,-7000.0,0.000298,4]
[319576003,1710877832391,-284.1,0.0002996,2]
[319576004,1710877832401,-13143.0,0.0003,3]
[319576005,1710877832411,-212.36678706,0.00030035,2]
[319576006,1710877832421,-166.79085018,0.00030036,2]
[319576007,1710877832432,-13327.6736648,0.00030036,2]
[319576008,1710877832457,-6485.0,0.00030036,2]
[319576009,1710877832468,-2892.96845365,0.00030036,2]
[319576010,1710877832562,-397.7418011,0.00030036,2]
[319576011,1710877832574,-1029.07753147,0.00030036,2]
[319576012,1710877832586,-643.07,0.00030036,2]
[319576013,1710877832640,-563.118291,0.00030036,2]
[319576017,1710877837411,-1040.94285824,0.00030036,2]
[319576018,1710877837421,-352.484857,0.00030036,2]
[319576019,1710877837433,-152.82416009,0.00030036,2]
[319576020,1710877837442,-478.54031647,0.000301,15]
[319576021,1710877837471,-564.67,0.000301,15]
[319576022,1710877837483,-19659.63250079,0.000301,15]
[319576023,1710877837534,-1739.44326758,0.000301,15]
[319576024,1710877837546,-58235.7732,0.000301,15]
[319576025,1710877837596,-1345.26643223,0.000301,15]
[319576026,1710877837658,-285.78602482,0.000301,15]
[319576037,1710877839456,-386.11588003,0.00030035,2]
[319576038,1710877839467,-4094.25396013,0.000301,15]
[319576039,1710877839517,-7931.57316116,0.000301,15]
[319576067,1710877842401,-1761.82550952,0.000226,5]
[319576068,1710877842411,-332.05621794,0.00030035,4]
[319576069,1710877842422,-56942.06113682,0.000301,15]
[319576070,1710877842433,-2500.0,0.00030124,15]
[319576071,1710877842443,-174.17989662,0.00030125,2]
[319576072,1710877842453,-321.08397805,0.00030133,4]
[319576073,1710877842464,-155.0,0.00030133,4]
[319576074,1710877842475,-258.97241146,0.00030133,4]
[319576075,1710877842485,-679.18882137,0.00030133,4]
[319576076,1710877842494,-448.39151807,0.00030133,120]
[319576077,1710877842505,-16485.34596921,0.00030134,2]
[319576078,1710877842517,-915.13956366,0.00030134,2]
[319576079,1710877842533,-3082.65187,0.00030134,2]
[319576080,1710877842567,-326.99393954,0.00030134,2]
[319576081,1710877842579,-723.50238996,0.00030134,2]
[319576082,1710877842590,-409.79455518,0.00030134,2]
[319576083,1710877842602,-613.89401627,0.00030134,2]
[319576084,1710877842613,-957.34884511,0.00030135,4]
[319576085,1710877842627,-2418.0,0.00030135,4]
[319576086,1710877842638,-2805.3726451,0.00030135,4]
[319576087,1710877842650,-2005.5516,0.00030135,4]
[319576088,1710877842663,-623.21,0.00030135,4]
[319576089,1710877842675,-907.39178848,0.00030135,4]
[319576090,1710877842690,-1050.0,0.00030135,4]
[319576093,1710877842712,-231917.70692714,0.00030135,4]
[319576095,1710877842721,-434.73119561,0.00030135,2]
[319576096,1710877842731,-277.0,0.00030136,5]
[319576098,1710877842741,-500.0,0.00030136,2]
[319576100,1710877842751,-500.0,0.00030136,2]
[319576102,1710877842760,-500.0,0.00030136,2]
[319576104,1710877842769,-500.0,0.00030136,2]
[319576106,1710877842779,-500.0,0.00030136,2]
[319576108,1710877842789,-500.0,0.00030136,2]
[319576109,1710877842798,-500.0,0.00030136,2]
[319576111,1710877842807,-500.0,0.00030136,2]
[319576113,1710877842817,-500.0,0.00030136,2]
[319576115,1710877842826,-541.05860075,0.00030136,2]
[319576117,1710877842837,-500.0,0.00030136,2]
[319576119,1710877842847,-500.0,0.00030136,2]
[319576120,1710877842856,-500.0,0.00030136,2]
[319576121,1710877842866,-500.0,0.00030136,2]
[319576122,1710877842876,-500.0,0.00030136,2]
[319576123,1710877842885,-500.0,0.00030136,2]
[319576124,1710877842895,-500.0,0.00030136,2]
[319576126,1710877842904,-500.86880103,0.00030136,2]
[319576128,1710877842913,-500.0,0.00030136,2]
[319576129,1710877842923,-500.0,0.00030136,2]
[319576130,1710877842935,-500.0,0.00030136,2]
[319576131,1710877842944,-500.0,0.00030136,2]
[319576132,1710877842953,-500.0,0.00030136,2]
[319576133,1710877842963,-500.0,0.00030136,2]
[319576134,1710877842972,-562.00878872,0.00030136,2]
[319576135,1710877842982,-500.0,0.00030136,2]
[319576136,1710877842991,-500.0,0.00030136,2]
[319576137,1710877843001,-500.0,0.00030136,2]
[319576138,1710877843011,-186.19430583,0.00030136,2]
[319576139,1710877843020,-500.33744679,0.00030136,2]
[319576140,1710877843029,-500.59474241,0.00030136,2]
[319576141,1710877843038,-500.0,0.00030136,2]
[319576142,1710877843048,-500.0,0.00030136,2]
[319576143,1710877843057,-500.0,0.00030136,2]
[319576144,1710877843066,-500.0,0.00030136,2]
[319576145,1710877843076,-500.0,0.00030136,2]
[319576146,1710877843085,-500.0,0.00030136,2]
[319576147,1710877843094,-500.27861114,0.00030136,2]
[319576148,1710877843103,-500.0,0.00030136,2]
[319576149,1710877843112,-500.0,0.00030136,2]
[319576150,1710877843122,-449.16337105,0.00030136,2]
[319576151,1710877843132,-691.47,0.00030136,2]